Workbook

Sheet Quote
B1: Name | C1: : | D1: Linear Projects | I1: Email: | M1: Phone No. | P1: Instructions: Enable Macros if prompted to. Select Family size & limits desired
B2: SME HEALTH COVER QUOTE
B3: No of Families | D3: Family Size | F3: IP Limit | H3: OP Limit | J3: Dental Limit | L3: Optical Limit | N3: Maternity Limit
G4: Premium | I4: Premium | K4: Premium | M4: Premium | O4: Premium
B5: 1 | D5: M+3 | F5: 10000000 | G5: =IFERROR(VLOOKUP($D5,Rates!$B$3:$I$10,Guide!D3,0)*B5,"") -> 239775 | H5: 100000 | I5: =IFERROR(IF(H5>Guide!I3,"Check Limit",VLOOKUP($D5,Rates!$S$3:$X$10,Guide!E3,0))*B5,"") -> 91380 | K5: =IFERROR(IF(J5>Guide!J3,"Check Limit",VLOOKUP($D5,Rates!$Z$3:$AE$10,Guide!F3,0))*B5,"") ->  | M5: =IFERROR(IF(L5>Guide!K3,"Check Limit",VLOOKUP($D5,Rates!$AG$3:$AL$10,Guide!G3,0))*B5,"") ->  | O5: =IFERROR(HLOOKUP($N5,Rates!$C$15:$H$16,2,0)*B5,"") -> 
B6: 3 | D6: M | F6: 2000000 | G6: =IFERROR(VLOOKUP($D6,Rates!$B$3:$I$10,Guide!D4,0)*B6,"") -> 129594 | H6: 100000 | I6: =IFERROR(IF(H6>Guide!I4,"Check Limit",VLOOKUP($D6,Rates!$S$3:$X$10,Guide!E4,0))*B6,"") -> 98896.32548 | K6: =IFERROR(IF(J6>Guide!J4,"Check Limit",VLOOKUP($D6,Rates!$Z$3:$AE$10,Guide!F4,0))*B6,"") ->  | M6: =IFERROR(IF(L6>Guide!K4,"Check Limit",VLOOKUP($D6,Rates!$AG$3:$AL$10,Guide!G4,0))*B6,"") ->  | O6: =IFERROR(HLOOKUP($N6,Rates!$C$15:$H$16,2,0)*B6,"") -> 
B7: 1 | D7: M+2 | F7: 2000000 | G7: =IFERROR(VLOOKUP($D7,Rates!$B$3:$I$10,Guide!D5,0)*B7,"") -> 84671 | H7: 100000 | I7: =IFERROR(IF(H7>Guide!I5,"Check Limit",VLOOKUP($D7,Rates!$S$3:$X$10,Guide!E5,0))*B7,"") -> 80107.30655 | K7: =IFERROR(IF(J7>Guide!J5,"Check Limit",VLOOKUP($D7,Rates!$Z$3:$AE$10,Guide!F5,0))*B7,"") ->  | M7: =IFERROR(IF(L7>Guide!K5,"Check Limit",VLOOKUP($D7,Rates!$AG$3:$AL$10,Guide!G5,0))*B7,"") ->  | O7: =IFERROR(HLOOKUP($N7,Rates!$C$15:$H$16,2,0)*B7,"") -> 
G8: =IFERROR(VLOOKUP($D8,Rates!$B$3:$I$10,Guide!D6,0)*B8,"") ->  | I8: =IFERROR(IF(H8>Guide!I6,"Check Limit",VLOOKUP($D8,Rates!$S$3:$X$10,Guide!E6,0))*B8,"") ->  | K8: =IFERROR(IF(J8>Guide!J6,"Check Limit",VLOOKUP($D8,Rates!$Z$3:$AE$10,Guide!F6,0))*B8,"") ->  | M8: =IFERROR(IF(L8>Guide!K6,"Check Limit",VLOOKUP($D8,Rates!$AG$3:$AL$10,Guide!G6,0))*B8,"") ->  | O8: =IFERROR(HLOOKUP($N8,Rates!$C$15:$H$16,2,0)*B8,"") -> 
G9: =IFERROR(VLOOKUP($D9,Rates!$B$3:$I$10,Guide!D7,0)*B9,"") ->  | I9: =IFERROR(IF(H9>Guide!I7,"Check Limit",VLOOKUP($D9,Rates!$S$3:$X$10,Guide!E7,0))*B9,"") ->  | K9: =IFERROR(IF(J9>Guide!J7,"Check Limit",VLOOKUP($D9,Rates!$Z$3:$AE$10,Guide!F7,0))*B9,"") ->  | M9: =IFERROR(IF(L9>Guide!K7,"Check Limit",VLOOKUP($D9,Rates!$AG$3:$AL$10,Guide!G7,0))*B9,"") ->  | O9: =IFERROR(HLOOKUP($N9,Rates!$C$15:$H$16,2,0)*B9,"") -> 
G10: =IFERROR(VLOOKUP($D10,Rates!$B$3:$I$10,Guide!D8,0)*B10,"") ->  | I10: =IFERROR(IF(H10>Guide!I8,"Check Limit",VLOOKUP($D10,Rates!$S$3:$X$10,Guide!E8,0))*B10,"") ->  | K10: =IFERROR(IF(J10>Guide!J8,"Check Limit",VLOOKUP($D10,Rates!$Z$3:$AE$10,Guide!F8,0))*B10,"") ->  | M10: =IFERROR(IF(L10>Guide!K8,"Check Limit",VLOOKUP($D10,Rates!$AG$3:$AL$10,Guide!G8,0))*B10,"") ->  | O10: =IFERROR(HLOOKUP($N10,Rates!$C$15:$H$16,2,0)*B10,"") -> 
G11: =IFERROR(VLOOKUP($D11,Rates!$B$3:$I$10,Guide!D9,0)*B11,"") ->  | I11: =IFERROR(IF(H11>Guide!I9,"Check Limit",VLOOKUP($D11,Rates!$S$3:$X$10,Guide!E9,0))*B11,"") ->  | K11: =IFERROR(IF(J11>Guide!J9,"Check Limit",VLOOKUP($D11,Rates!$Z$3:$AE$10,Guide!F9,0))*B11,"") ->  | M11: =IFERROR(IF(L11>Guide!K9,"Check Limit",VLOOKUP($D11,Rates!$AG$3:$AL$10,Guide!G9,0))*B11,"") ->  | O11: =IFERROR(HLOOKUP($N11,Rates!$C$15:$H$16,2,0)*B11,"") -> 
G12: =IFERROR(VLOOKUP($D12,Rates!$B$3:$I$10,Guide!D10,0)*B12,"") ->  | I12: =IFERROR(IF(H12>Guide!I10,"Check Limit",VLOOKUP($D12,Rates!$S$3:$X$10,Guide!E10,0))*B12,"") ->  | K12: =IFERROR(IF(J12>Guide!J10,"Check Limit",VLOOKUP($D12,Rates!$Z$3:$AE$10,Guide!F10,0))*B12,"") ->  | M12: =IFERROR(IF(L12>Guide!K10,"Check Limit",VLOOKUP($D12,Rates!$AG$3:$AL$10,Guide!G10,0))*B12,"") ->  | O12: =IFERROR(HLOOKUP($N12,Rates!$C$15:$H$16,2,0)*B12,"") -> 
G13: =IFERROR(VLOOKUP($D13,Rates!$B$3:$I$10,Guide!D11,0)*B13,"") ->  | I13: =IFERROR(IF(H13>Guide!I11,"Check Limit",VLOOKUP($D13,Rates!$S$3:$X$10,Guide!E11,0))*B13,"") ->  | K13: =IFERROR(IF(J13>Guide!J11,"Check Limit",VLOOKUP($D13,Rates!$Z$3:$AE$10,Guide!F11,0))*B13,"") ->  | M13: =IFERROR(IF(L13>Guide!K11,"Check Limit",VLOOKUP($D13,Rates!$AG$3:$AL$10,Guide!G11,0))*B13,"") ->  | O13: =IFERROR(HLOOKUP($N13,Rates!$C$15:$H$16,2,0)*B13,"") -> 
G14: =IFERROR(VLOOKUP($D14,Rates!$B$3:$I$10,Guide!D12,0)*B14,"") ->  | I14: =IFERROR(IF(H14>Guide!I12,"Check Limit",VLOOKUP($D14,Rates!$S$3:$X$10,Guide!E12,0))*B14,"") ->  | K14: =IFERROR(IF(J14>Guide!J12,"Check Limit",VLOOKUP($D14,Rates!$Z$3:$AE$10,Guide!F12,0))*B14,"") ->  | M14: =IFERROR(IF(L14>Guide!K12,"Check Limit",VLOOKUP($D14,Rates!$AG$3:$AL$10,Guide!G12,0))*B14,"") ->  | O14: =IFERROR(HLOOKUP($N14,Rates!$C$15:$H$16,2,0)*B14,"") -> 
G15: =IFERROR(VLOOKUP($D15,Rates!$B$3:$I$10,Guide!D13,0)*B15,"") ->  | I15: =IFERROR(IF(H15>Guide!I13,"Check Limit",VLOOKUP($D15,Rates!$S$3:$X$10,Guide!E13,0))*B15,"") ->  | K15: =IFERROR(IF(J15>Guide!J13,"Check Limit",VLOOKUP($D15,Rates!$Z$3:$AE$10,Guide!F13,0))*B15,"") ->  | M15: =IFERROR(IF(L15>Guide!K13,"Check Limit",VLOOKUP($D15,Rates!$AG$3:$AL$10,Guide!G13,0))*B15,"") ->  | O15: =IFERROR(HLOOKUP($N15,Rates!$C$15:$H$16,2,0)*B15,"") -> 
G16: =IFERROR(VLOOKUP($D16,Rates!$B$3:$I$10,Guide!D14,0)*B16,"") ->  | I16: =IFERROR(IF(H16>Guide!I14,"Check Limit",VLOOKUP($D16,Rates!$S$3:$X$10,Guide!E14,0))*B16,"") ->  | K16: =IFERROR(IF(J16>Guide!J14,"Check Limit",VLOOKUP($D16,Rates!$Z$3:$AE$10,Guide!F14,0))*B16,"") ->  | M16: =IFERROR(IF(L16>Guide!K14,"Check Limit",VLOOKUP($D16,Rates!$AG$3:$AL$10,Guide!G14,0))*B16,"") ->  | O16: =IFERROR(HLOOKUP($N16,Rates!$C$15:$H$16,2,0)*B16,"") -> 
G17: =IFERROR(VLOOKUP($D17,Rates!$B$3:$I$10,Guide!D15,0)*B17,"") ->  | I17: =IFERROR(IF(H17>Guide!I15,"Check Limit",VLOOKUP($D17,Rates!$S$3:$X$10,Guide!E15,0))*B17,"") ->  | K17: =IFERROR(IF(J17>Guide!J15,"Check Limit",VLOOKUP($D17,Rates!$Z$3:$AE$10,Guide!F15,0))*B17,"") ->  | M17: =IFERROR(IF(L17>Guide!K15,"Check Limit",VLOOKUP($D17,Rates!$AG$3:$AL$10,Guide!G15,0))*B17,"") ->  | O17: =IFERROR(HLOOKUP($N17,Rates!$C$15:$H$16,2,0)*B17,"") -> 
G18: =IFERROR(VLOOKUP($D18,Rates!$B$3:$I$10,Guide!D16,0)*B18,"") ->  | I18: =IFERROR(IF(H18>Guide!I16,"Check Limit",VLOOKUP($D18,Rates!$S$3:$X$10,Guide!E16,0))*B18,"") ->  | K18: =IFERROR(IF(J18>Guide!J16,"Check Limit",VLOOKUP($D18,Rates!$Z$3:$AE$10,Guide!F16,0))*B18,"") ->  | M18: =IFERROR(IF(L18>Guide!K16,"Check Limit",VLOOKUP($D18,Rates!$AG$3:$AL$10,Guide!G16,0))*B18,"") ->  | O18: =IFERROR(HLOOKUP($N18,Rates!$C$15:$H$16,2,0)*B18,"") -> 
G19: =IFERROR(VLOOKUP($D19,Rates!$B$3:$I$10,Guide!D17,0)*B19,"") ->  | I19: =IFERROR(IF(H19>Guide!I17,"Check Limit",VLOOKUP($D19,Rates!$S$3:$X$10,Guide!E17,0))*B19,"") ->  | K19: =IFERROR(IF(J19>Guide!J17,"Check Limit",VLOOKUP($D19,Rates!$Z$3:$AE$10,Guide!F17,0))*B19,"") ->  | M19: =IFERROR(IF(L19>Guide!K17,"Check Limit",VLOOKUP($D19,Rates!$AG$3:$AL$10,Guide!G17,0))*B19,"") ->  | O19: =IFERROR(HLOOKUP($N19,Rates!$C$15:$H$16,2,0)*B19,"") -> 
B21: Premium Sub-totals | G21: =SUM(G5:G19) -> 454040 | I21: =SUM(I5:I19) -> 270383.632 | K21: =SUM(K5:K19) -> 0 | M21: =SUM(M5:M19) -> 0 | O21: =SUM(O5:O19) -> 0
F24: Basic Premium: | G24: =SUM(G21,I21,K21,M21,O21) -> 724423.632
F26: Levies @ 0.45% : | G26: =0.45%*G24 -> 3259.906344
F28: Stamp Duty: | G28: 40
F30: Total Premium Payable: | G30: =SUM(G24:G28) -> 727723.5384
B33: Quote issued by | C33: : | F33: Samuel Mwangi | I33: Date: | J33: =TODAY() -> 2025-04-28
B36: DOCUMENTATION REQUIRED AT THE POINT OF APPLYING FOR COVER
B37: i) Duly filled scheme Application Form by the scheme contact person or sponsor, signed and stamped.
B38: ii) Duly filled and signed application form by each employee.
B39: iii) Certificate of Incorporation/Registration , CR12 and KRA PIN Certificate for the group.
B40: iv) Letter of appointment of the insurance agent or broker if any.
B41: v) List of Members covered and dependents (where applicable) and relevant details. All employees or members of the organization must enrol.
B42: vi) Company Logo for medical cards processing (Optional)
B43: vii) Proof of premium payment and the quotation. Cover will only commence after premiums payment.
B45: GENERAL CONDITIONS
B47: i) Eligibility is all persons and their legal dependants from age of zero (0) months to sixty five (65) years. Existing members can continue renewing in the
B48: scheme up to the age of seventy (70 years).
B49: ii) Eligible dependents include one spouse, own children from the age of zero (0) months to eighteen years (18), or up to twenty five (25) years if
B50: proof of schooling is provided.
B51: iii) Co-Pays apply as per the details on the benefits schedule provided in this brochure.
B52: iv) A countrywide network of providers is accessible to members.
B53: v) Waiting Periods have been waived under the product, provided the all the employees in of the organization taking cover are enrolled.
B54: vi) All scheduled admissions must be pre authorised at least 48 hours prior to admission.
B55: For emergency admissions the hospital should contact Old Mutual General Insurance within 48 hours of admission.
B56: vii) All hospital bills shall be paid net of National Hospital Insurance Fund (NHIF) rebates as shall be advised from Old Mutual General Insurance.
B57: viii) Medical cards must be presented at the accredited panel of service providers for access to service. Each member will also be required to
B58: complete and sign a claim form.
B59: ix) A member travelling outside the country will be eligible for emergency medical benefits up to a period of six (6) weeks in any one visit.
B60: All medical expenses will be on reimbursement basis and will be within the acceptable guidelines of the customary and reasonable charges and
B61: as per the policy terms and conditions. Travel and accommodation costs are not covered.

Sheet Definitions (hidden)
O2: CRITICAL ILLNESS
C3: Family Sizes | E3: Inpatient Limits | G3: Outpatient Limits | I3: Dental Limits | K3: Optical Limits | M3: Maternity Limits | O3: Age Band | P3: Member Only | Q3: Member Plus Family
C4: M | E4: 250000 | G4: 50000 | I4: 10000 | K4: 10000 | M4: 50000 | O4: 19-29 | P4: 1333 | Q4: 2000
C5: M+1 | E5: 500000 | G5: 100000 | I5: 20000 | K5: 20000 | M5: 75000 | O5: 30-40 | P5: 1890 | Q5: 2835
C6: M+2 | E6: 1000000 | G6: 150000 | I6: 30000 | K6: 30000 | M6: 100000 | O6: 41-50 | P6: 3637 | Q6: 5455
C7: M+3 | E7: 2000000 | G7: 200000 | I7: 40000 | K7: 40000 | M7: 150000 | O7: 51-64 | P7: 10159 | Q7: 15238
C8: M+4 | E8: 3000000 | G8: 250000 | I8: 50000 | K8: 50000 | M8: 200000 | O8: 65 + | P8: 0 | Q8: 0
C9: M+5 | E9: 5000000 | M9: 300000
C10: M+6 | E10: 10000000

Sheet Rates (hidden)
B1: IP Row
G2: INPATIENT | S2: OUTPATIENT | Z2: DENTAL | AG2: OPTICAL
B3: Family Size | C3: 250000 | D3: 500000 | E3: 1000000 | F3: 2000000 | G3: 3000000 | H3: 5000000 | I3: 10000000 | S3: Family Size | T3: 50000 | U3: 100000 | V3: 150000 | W3: 200000 | X3: 250000 | Z3: Family Size | AA3: 10000 | AB3: 20000 | AC3: 30000 | AD3: 40000 | AE3: 50000 | AG3: Family Size | AH3: 10000 | AI3: 20000 | AJ3: 30000 | AK3: 40000 | AL3: 50000
A4: 1 | B4: M | C4: 32139 | D4: 34040 | E4: 37595 | F4: 43198 | G4: 43811 | H4: 53685 | I4: 78010 | R4: 1 | S4: M | T4: 30344.63988 | U4: 32965.44183 | V4: 38284.05461 | W4: 42238.56069 | X4: 42504.57812 | Y4: 1 | Z4: M | AA4: 1999.9 | AB4: 3329.9 | AC4: 6000.4 | AD4: 8617.645654 | AE4: 9086.614749 | AF4: 1 | AG4: M | AH4: 4196.07721 | AI4: 8425.449863 | AJ4: 10259.29097 | AK4: 11409.54957 | AL4: 12559.80817
A5: 2 | B5: M+1 | C5: 40529 | D5: 45849 | E5: 51066 | F5: 62672 | G5: 69729 | H5: 96781 | I5: 133688 | R5: 2 | S5: M+1 | T5: 49999 | U5: 60416.10473 | V5: 69870.71693 | W5: 77170.06992 | X5: 80182.69635 | Y5: 2 | Z5: M+1 | AA5: 2886.1 | AB5: 6549.942634 | AC5: 8657.6 | AD5: 14384.33591 | AE5: 16151.07609 | AF5: 2 | AG5: M+1 | AH5: 6609.184509 | AI5: 11684.12124 | AJ5: 14841.20215 | AK5: 16113.21826 | AL5: 17385.23437
A6: 3 | B6: M+2 | C6: 50464 | D6: 58458 | E6: 76833 | F6: 84671 | G6: 106121 | H6: 140666 | I6: 185048 | R6: 3 | S6: M+2 | T6: 49999 | U6: 80107.30655 | V6: 88506.17251 | W6: 94075.41689 | X6: 99655.40582 | Y6: 3 | Z6: M+2 | AA6: 3917.262125 | AB6: 9419.974955 | AC6: 11612.44687 | AD6: 19083.56377 | AE6: 21995.04194 | AF6: 3 | AG6: M+2 | AH6: 8509.941034 | AI6: 14210.61167 | AJ6: 18355.29339 | AK6: 19687.30167 | AL6: 21019.30995
A7: 4 | B7: M+3 | C7: 63098 | D7: 75633 | E7: 102044 | F7: 111661 | G7: 141187 | H7: 184884 | I7: 239775 | R7: 4 | S7: M+3 | T7: 49999 | U7: 91380 | V7: 106765.7911 | W7: 115042.3425 | X7: 119755.2659 | Y7: 4 | Z7: M+3 | AA7: 5135.754688 | AB7: 12456.05028 | AC7: 15451.91207 | AD7: 24275.79523 | AE7: 28402.68917 | AF7: 4 | AG7: M+3 | AH7: 9999 | AI7: 17062.14703 | AJ7: 22343.43338 | AK7: 23762.85398 | AL7: 25182.27458
A8: 5 | B8: M+4 | C8: 74459 | D8: 92081 | E8: 129722 | F8: 139832 | G8: 179040 | H8: 228402 | I8: 287428 | R8: 5 | S8: M+4 | T8: 49999 | U8: 96318 | V8: 126085.89 | W8: 132050.2659 | X8: 137343.89 | Y8: 5 | Z8: M+4 | AA8: 6231.49492 | AB8: 14940.01214 | AC8: 19124.96489 | AD8: 27828.72894 | AE8: 32936.02633 | AF8: 5 | AG8: M+4 | AH8: 9999 | AI8: 18784.70912 | AJ8: 24685.06757 | AK8: 26096.66253 | AL8: 27508.25749
A9: 6 | B9: M+5 | C9: 86263 | D9: 108684 | E9: 156873 | F9: 167750 | G9: 216297 | H9: 272070 | I9: 336592 | R9: 6 | S9: M+5 | T9: 49999 | U9: 98648.25 | V9: 136047.7567 | W9: 160020.7355 | X9: 155217.6587 | Y9: 6 | Z9: M+5 | AA9: 7371.359604 | AB9: 17622.43626 | AC9: 22857.83616 | AD9: 31970.92328 | AE9: 38143.10144 | AF9: 6 | AG9: M+5 | AH9: 9999 | AI9: 19999 | AJ9: 27623.02163 | AK9: 29061.28357 | AL9: 30499.5455
A10: 7 | B10: M+6 | C10: 97618 | D10: 125129 | E10: 184559 | F10: 195924 | G10: 254158 | H10: 315587 | I10: 384222 | R10: 7 | S10: M+6 | T10: 49999 | U10: 99817.5 | V10: 145288.8823 | W10: 171453.6303 | X10: 184703.6298 | Y10: 7 | Z10: M+6 | AA10: 8477.11073 | AB10: 19999 | AC10: 26544.46051 | AD10: 35657.54763 | AE10: 42829.29533 | AF10: 7 | AG10: M+6 | AH10: 9999 | AI10: 19999 | AJ10: 29999 | AK10: 31538.20998 | AL10: 32976.47192
B11: Additional Premium per Member Above 50 | C11: 19325 | D11: 20381 | E11: 22130 | F11: 26417 | G11: 31265 | H11: 47336 | I11: 70654 | S11: Maximum Dental | T11: 10000 | U11: 30000 | V11: 40000 | W11: 50000 | X11: 50000
B12: Maximum OP | C12: 50000 | D12: 100000 | E12: 150000 | F12: 200000 | G12: 250000 | H12: 250000 | I12: 250000 | S12: Maximum Optical | T12: 10000 | U12: 30000 | V12: 40000 | W12: 50000 | X12: 50000
C13: 2 | D13: =C13+1 -> 3 | E13: =D13+1 -> 4 | F13: 5 | G13: 6 | H13: 7 | I13: 8 | T13: 2 | U13: =T13+1 -> 3 | V13: =U13+1 -> 4 | W13: 5 | X13: 6 | AA13: 2 | AB13: =AA13+1 -> 3 | AC13: =AB13+1 -> 4 | AD13: 5 | AE13: 6 | AH13: 2 | AI13: =AH13+1 -> 3 | AJ13: =AI13+1 -> 4 | AK13: 5 | AL13: 6
B14: MATERNITY RATES | S14: OP Limit | T14: 50000 | U14: 100000 | V14: 150000 | W14: 200000 | X14: 250000
B15: Maternity | C15: 50000 | D15: 75000 | E15: 100000 | F15: 150000 | G15: 200000 | H15: 300000 | T15: 2 | U15: =T15+1 -> 3 | V15: 4 | W15: 5 | X15: 6
B16: Per Family | C16: 10482.94418 | D16: 14482.94418 | E16: 20482.94418 | F16: 28292.66006 | G16: 38471.21147 | H16: 54828.31427
C17: 2 | D17: =C17+1 -> 3 | E17: =D17+1 -> 4 | F17: 5 | G17: 6 | H17: 7
S18: Additional Premium per Member Above 50 | T18: 32740.65197 | U18: 35568.39237 | V18: 41306.9627 | W18: 45573.71649 | X18: 45860.73866
S19: *Limited to OP Limit - 1
S36: Maximum Dental | T36: 10000 | U36: 20000 | V36: 30000 | W36: 40000 | X36: 50000
S37: Maximum Optical | T37: 10000 | U37: 20000 | V37: 30000 | W37: 40000 | X37: 50000
T38: 2 | U38: =T38+1 -> 3 | V38: =U38+1 -> 4 | W38: =V38+1 -> 5 | X38: =W38+1 -> 6
S39: OP Limit | T39: 50000 | U39: 100000 | V39: 150000 | W39: 200000 | X39: 250000
T40: 2 | U40: =T40+1 -> 3 | V40: =U40+1 -> 4 | W40: =V40+1 -> 5 | X40: =W40+1 -> 6

Sheet Guide (hidden)
D1: IP Limit | E1: OP Limit | F1: Dental Limit | G1: Optical Limit | H1: Maternity Limit | I1: Max OP | J1: Max Dental | K1: Max Optical
C3: Principal Member 1 | D3: =HLOOKUP(Quote!F5,Rates!$C$3:$I$13,11,0) -> 8 | E3: =HLOOKUP(Quote!H5,Rates!$S$3:$X$13,11,0) -> 3 | F3: =HLOOKUP(Quote!J5,Rates!$Z$3:$AE$13,11,0) ->  | G3: =HLOOKUP(Quote!L5,Rates!$AG$3:$AL$13,11,0) ->  | H3: =HLOOKUP(Quote!N5,Rates!$C$15:$H$17,3,0) ->  | I3: =HLOOKUP(Quote!F5,Rates!$C$3:$I$12,10,0) -> 250000 | J3: =HLOOKUP(Quote!H5,Rates!$S$3:$X$12,9,0) -> 30000 | K3: =HLOOKUP(Quote!H5,Rates!$S$3:$X$12,10,0) -> 30000
C4: Principal Member 2 | D4: =HLOOKUP(Quote!F6,Rates!$C$3:$I$13,11,0) -> 5 | E4: =HLOOKUP(Quote!H6,Rates!$S$3:$X$13,11,0) -> 3 | F4: =HLOOKUP(Quote!J6,Rates!$Z$3:$AE$13,11,0) ->  | G4: =HLOOKUP(Quote!L6,Rates!$AG$3:$AL$13,11,0) ->  | H4: =HLOOKUP(Quote!N6,Rates!$C$15:$H$17,3,0) ->  | I4: =HLOOKUP(Quote!F6,Rates!$C$3:$I$12,10,0) -> 200000 | J4: =HLOOKUP(Quote!H6,Rates!$S$3:$X$12,9,0) -> 30000 | K4: =HLOOKUP(Quote!H6,Rates!$S$3:$X$12,10,0) -> 30000
C5: Principal Member 3 | D5: =HLOOKUP(Quote!F7,Rates!$C$3:$I$13,11,0) -> 5 | E5: =HLOOKUP(Quote!H7,Rates!$S$3:$X$13,11,0) -> 3 | F5: =HLOOKUP(Quote!J7,Rates!$Z$3:$AE$13,11,0) ->  | G5: =HLOOKUP(Quote!L7,Rates!$AG$3:$AL$13,11,0) ->  | H5: =HLOOKUP(Quote!N7,Rates!$C$15:$H$17,3,0) ->  | I5: =HLOOKUP(Quote!F7,Rates!$C$3:$I$12,10,0) -> 200000 | J5: =HLOOKUP(Quote!H7,Rates!$S$3:$X$12,9,0) -> 30000 | K5: =HLOOKUP(Quote!H7,Rates!$S$3:$X$12,10,0) -> 30000
C6: Principal Member 4 | D6: =HLOOKUP(Quote!F8,Rates!$C$3:$I$13,11,0) ->  | E6: =HLOOKUP(Quote!H8,Rates!$S$3:$X$13,11,0) ->  | F6: =HLOOKUP(Quote!J8,Rates!$Z$3:$AE$13,11,0) ->  | G6: =HLOOKUP(Quote!L8,Rates!$AG$3:$AL$13,11,0) ->  | H6: =HLOOKUP(Quote!N8,Rates!$C$15:$H$17,3,0) ->  | I6: =HLOOKUP(Quote!F8,Rates!$C$3:$I$12,10,0) ->  | J6: =HLOOKUP(Quote!H8,Rates!$S$3:$X$12,9,0) ->  | K6: =HLOOKUP(Quote!H8,Rates!$S$3:$X$12,10,0) -> 
C7: Principal Member 5 | D7: =HLOOKUP(Quote!F9,Rates!$C$3:$I$13,11,0) ->  | E7: =HLOOKUP(Quote!H9,Rates!$S$3:$X$13,11,0) ->  | F7: =HLOOKUP(Quote!J9,Rates!$Z$3:$AE$13,11,0) ->  | G7: =HLOOKUP(Quote!L9,Rates!$AG$3:$AL$13,11,0) ->  | H7: =HLOOKUP(Quote!N9,Rates!$C$15:$H$17,3,0) ->  | I7: =HLOOKUP(Quote!F9,Rates!$C$3:$I$12,10,0) ->  | J7: =HLOOKUP(Quote!H9,Rates!$S$3:$X$12,9,0) ->  | K7: =HLOOKUP(Quote!H9,Rates!$S$3:$X$12,10,0) -> 
C8: Principal Member 6 | D8: =HLOOKUP(Quote!F10,Rates!$C$3:$I$13,11,0) ->  | E8: =HLOOKUP(Quote!H10,Rates!$S$3:$X$13,11,0) ->  | F8: =HLOOKUP(Quote!J10,Rates!$Z$3:$AE$13,11,0) ->  | G8: =HLOOKUP(Quote!L10,Rates!$AG$3:$AL$13,11,0) ->  | H8: =HLOOKUP(Quote!N10,Rates!$C$15:$H$17,3,0) ->  | I8: =HLOOKUP(Quote!F10,Rates!$C$3:$I$12,10,0) ->  | J8: =HLOOKUP(Quote!H10,Rates!$S$3:$X$12,9,0) ->  | K8: =HLOOKUP(Quote!H10,Rates!$S$3:$X$12,10,0) -> 
C9: Principal Member 7 | D9: =HLOOKUP(Quote!F11,Rates!$C$3:$I$13,11,0) ->  | E9: =HLOOKUP(Quote!H11,Rates!$S$3:$X$13,11,0) ->  | F9: =HLOOKUP(Quote!J11,Rates!$Z$3:$AE$13,11,0) ->  | G9: =HLOOKUP(Quote!L11,Rates!$AG$3:$AL$13,11,0) ->  | H9: =HLOOKUP(Quote!N11,Rates!$C$15:$H$17,3,0) ->  | I9: =HLOOKUP(Quote!F11,Rates!$C$3:$I$12,10,0) ->  | J9: =HLOOKUP(Quote!H11,Rates!$S$3:$X$12,9,0) ->  | K9: =HLOOKUP(Quote!H11,Rates!$S$3:$X$12,10,0) -> 
C10: Principal Member 8 | D10: =HLOOKUP(Quote!F12,Rates!$C$3:$I$13,11,0) ->  | E10: =HLOOKUP(Quote!H12,Rates!$S$3:$X$13,11,0) ->  | F10: =HLOOKUP(Quote!J12,Rates!$Z$3:$AE$13,11,0) ->  | G10: =HLOOKUP(Quote!L12,Rates!$AG$3:$AL$13,11,0) ->  | H10: =HLOOKUP(Quote!N12,Rates!$C$15:$H$17,3,0) ->  | I10: =HLOOKUP(Quote!F12,Rates!$C$3:$I$12,10,0) ->  | J10: =HLOOKUP(Quote!H12,Rates!$S$3:$X$12,9,0) ->  | K10: =HLOOKUP(Quote!H12,Rates!$S$3:$X$12,10,0) -> 
C11: Principal Member 9 | D11: =HLOOKUP(Quote!F13,Rates!$C$3:$I$13,11,0) ->  | E11: =HLOOKUP(Quote!H13,Rates!$S$3:$X$13,11,0) ->  | F11: =HLOOKUP(Quote!J13,Rates!$Z$3:$AE$13,11,0) ->  | G11: =HLOOKUP(Quote!L13,Rates!$AG$3:$AL$13,11,0) ->  | H11: =HLOOKUP(Quote!N13,Rates!$C$15:$H$17,3,0) ->  | I11: =HLOOKUP(Quote!F13,Rates!$C$3:$I$12,10,0) ->  | J11: =HLOOKUP(Quote!H13,Rates!$S$3:$X$12,9,0) ->  | K11: =HLOOKUP(Quote!H13,Rates!$S$3:$X$12,10,0) -> 
C12: Principal Member 10 | D12: =HLOOKUP(Quote!F14,Rates!$C$3:$I$13,11,0) ->  | E12: =HLOOKUP(Quote!H14,Rates!$S$3:$X$13,11,0) ->  | F12: =HLOOKUP(Quote!J14,Rates!$Z$3:$AE$13,11,0) ->  | G12: =HLOOKUP(Quote!L14,Rates!$AG$3:$AL$13,11,0) ->  | H12: =HLOOKUP(Quote!N14,Rates!$C$15:$H$17,3,0) ->  | I12: =HLOOKUP(Quote!F14,Rates!$C$3:$I$12,10,0) ->  | J12: =HLOOKUP(Quote!H14,Rates!$S$3:$X$12,9,0) ->  | K12: =HLOOKUP(Quote!H14,Rates!$S$3:$X$12,10,0) -> 
C13: Principal Member 11 | D13: =HLOOKUP(Quote!F15,Rates!$C$3:$I$13,11,0) ->  | E13: =HLOOKUP(Quote!H15,Rates!$S$3:$X$13,11,0) ->  | F13: =HLOOKUP(Quote!J15,Rates!$Z$3:$AE$13,11,0) ->  | G13: =HLOOKUP(Quote!L15,Rates!$AG$3:$AL$13,11,0) ->  | H13: =HLOOKUP(Quote!N15,Rates!$C$15:$H$17,3,0) ->  | I13: =HLOOKUP(Quote!F15,Rates!$C$3:$I$12,10,0) ->  | J13: =HLOOKUP(Quote!H15,Rates!$S$3:$X$12,9,0) ->  | K13: =HLOOKUP(Quote!H15,Rates!$S$3:$X$12,10,0) -> 
C14: Principal Member 12 | D14: =HLOOKUP(Quote!F16,Rates!$C$3:$I$13,11,0) ->  | E14: =HLOOKUP(Quote!H16,Rates!$S$3:$X$13,11,0) ->  | F14: =HLOOKUP(Quote!J16,Rates!$Z$3:$AE$13,11,0) ->  | G14: =HLOOKUP(Quote!L16,Rates!$AG$3:$AL$13,11,0) ->  | H14: =HLOOKUP(Quote!N16,Rates!$C$15:$H$17,3,0) ->  | I14: =HLOOKUP(Quote!F16,Rates!$C$3:$I$12,10,0) ->  | J14: =HLOOKUP(Quote!H16,Rates!$S$3:$X$12,9,0) ->  | K14: =HLOOKUP(Quote!H16,Rates!$S$3:$X$12,10,0) -> 
C15: Principal Member 13 | D15: =HLOOKUP(Quote!F17,Rates!$C$3:$I$13,11,0) ->  | E15: =HLOOKUP(Quote!H17,Rates!$S$3:$X$13,11,0) ->  | F15: =HLOOKUP(Quote!J17,Rates!$Z$3:$AE$13,11,0) ->  | G15: =HLOOKUP(Quote!L17,Rates!$AG$3:$AL$13,11,0) ->  | H15: =HLOOKUP(Quote!N17,Rates!$C$15:$H$17,3,0) ->  | I15: =HLOOKUP(Quote!F17,Rates!$C$3:$I$12,10,0) ->  | J15: =HLOOKUP(Quote!H17,Rates!$S$3:$X$12,9,0) ->  | K15: =HLOOKUP(Quote!H17,Rates!$S$3:$X$12,10,0) -> 
C16: Principal Member 14 | D16: =HLOOKUP(Quote!F18,Rates!$C$3:$I$13,11,0) ->  | E16: =HLOOKUP(Quote!H18,Rates!$S$3:$X$13,11,0) ->  | F16: =HLOOKUP(Quote!J18,Rates!$Z$3:$AE$13,11,0) ->  | G16: =HLOOKUP(Quote!L18,Rates!$AG$3:$AL$13,11,0) ->  | H16: =HLOOKUP(Quote!N18,Rates!$C$15:$H$17,3,0) ->  | I16: =HLOOKUP(Quote!F18,Rates!$C$3:$I$12,10,0) ->  | J16: =HLOOKUP(Quote!H18,Rates!$S$3:$X$12,9,0) ->  | K16: =HLOOKUP(Quote!H18,Rates!$S$3:$X$12,10,0) -> 
C17: Principal Member 15 | D17: =HLOOKUP(Quote!F19,Rates!$C$3:$I$13,11,0) ->  | E17: =HLOOKUP(Quote!H19,Rates!$S$3:$X$13,11,0) ->  | F17: =HLOOKUP(Quote!J19,Rates!$Z$3:$AE$13,11,0) ->  | G17: =HLOOKUP(Quote!L19,Rates!$AG$3:$AL$13,11,0) ->  | H17: =HLOOKUP(Quote!N19,Rates!$C$15:$H$17,3,0) ->  | I17: =HLOOKUP(Quote!F19,Rates!$C$3:$I$12,10,0) ->  | J17: =HLOOKUP(Quote!H19,Rates!$S$3:$X$12,9,0) ->  | K17: =HLOOKUP(Quote!H19,Rates!$S$3:$X$12,10,0) -> 
